[Event "*** Qualifier 3: Titled Tuesday 3|2 Blitz"]
[Site "Chess.com"]
[Date "2017.04.18"]
[Round "4"]
[White "SabinaFoisor"]
[Black "Ilja_Semjonovs"]
[Result "1-0"]
[WhiteElo "2217"]
[BlackElo "2191"]
[TimeControl "180+2"]
[EndTime "13:53:22 PDT"]
[Termination "SabinaFoisor won by checkmate"]

1. d4 {[%clk 0:03:02]} 1... Nf6 {[%clk 0:03:00.6]} 2. c4 {[%clk 0:03:02.6]} 2...
c5 {[%clk 0:03:01.4]} 3. d5 {[%clk 0:03:02.9]} 3... b5 {[%clk 0:03:02.6]} 4.
cxb5 {[%clk 0:02:59.7]} 4... a6 {[%clk 0:03:03.8]} 5. bxa6 {[%clk 0:02:57.5]}
5... g6 {[%clk 0:03:04.6]} 6. g3 {[%clk 0:02:56.9]} 6... d6 {[%clk 0:02:59.2]}
7. Bg2 {[%clk 0:02:57.5]} 7... Nxa6 {[%clk 0:02:57.2]} 8. Nc3 {[%clk 0:02:54.4]}
8... Bg7 {[%clk 0:02:58.3]} 9. Nf3 {[%clk 0:02:45.5]} 9... O-O {[%clk 0:02:59]}
10. O-O {[%clk 0:02:46.5]} 10... Rb8 {[%clk 0:02:44.2]} 11. Re1 {[%clk
0:02:40.8]} 11... Bg4 {[%clk 0:02:38]} 12. h3 {[%clk 0:02:35.5]} 12... Bxf3
{[%clk 0:02:38.7]} 13. Bxf3 {[%clk 0:02:36]} 13... Nd7 {[%clk 0:02:40.3]} 14.
Bg2 {[%clk 0:02:28.4]} 14... Ne5 {[%clk 0:02:40.7]} 15. a4 {[%clk 0:02:16.5]}
15... Nc4 {[%clk 0:02:32]} 16. Qd3 {[%clk 0:01:51.8]} 16... Nxb2 {[%clk
0:02:15.4]} 17. Bxb2 {[%clk 0:01:38.7]} 17... Rxb2 {[%clk 0:02:16]} 18. Qxa6
{[%clk 0:01:32.7]} 18... Bxc3 {[%clk 0:02:16.2]} 19. Rec1 {[%clk 0:01:31.7]}
19... Bd4 {[%clk 0:01:55.6]} 20. e3 {[%clk 0:01:28.5]} 20... Bf6 {[%clk
0:01:54.6]} 21. h4 {[%clk 0:01:22.5]} 21... Qb8 {[%clk 0:01:44.5]} 22. Qf1
{[%clk 0:01:01.2]} 22... Qa7 {[%clk 0:01:22.1]} 23. a5 {[%clk 0:00:54.4]} 23...
Rfb8 {[%clk 0:01:22.5]} 24. a6 {[%clk 0:00:54.8]} 24... R8b6 {[%clk 0:01:08.2]}
25. Be4 {[%clk 0:00:53.3]} 25... Rd2 {[%clk 0:00:58.1]} 26. Ra4 {[%clk
0:00:42.3]} 26... Rbb2 {[%clk 0:00:58]} 27. Rb1 {[%clk 0:00:43]} 27... Rxb1
{[%clk 0:00:45.4]} 28. Qxb1 {[%clk 0:00:41.6]} 28... Rb2 {[%clk 0:00:46.2]} 29.
Qd3 {[%clk 0:00:41.5]} 29... Rb8 {[%clk 0:00:28.1]} 30. h5 {[%clk 0:00:42.1]}
30... Kg7 {[%clk 0:00:28.6]} 31. Kg2 {[%clk 0:00:40.6]} 31... Rb2 {[%clk
0:00:15.9]} 32. Qd1 {[%clk 0:00:37.1]} 32... c4 {[%clk 0:00:14.2]} 33. Qg4
{[%clk 0:00:20.6]} 33... Qxe3 {[%clk 0:00:09.8]} 34. Qf3 {[%clk 0:00:19.7]}
34... Qa7 {[%clk 0:00:09.7]} 35. Rxc4 {[%clk 0:00:18.6]} 35... Qxa6 {[%clk
0:00:09.9]} 36. Bd3 {[%clk 0:00:19.8]} 36... Qb6 {[%clk 0:00:09.1]} 37. Rf4
{[%clk 0:00:19.6]} 37... Rb3 {[%clk 0:00:06.1]} 38. g4 {[%clk 0:00:19.7]} 38...
h6 {[%clk 0:00:03.8]} 39. hxg6 {[%clk 0:00:19.8]} 39... fxg6 {[%clk 0:00:04.3]}
40. Qe4 {[%clk 0:00:21.2]} 40... Rxd3 {[%clk 0:00:04]} 41. Qxd3 {[%clk
0:00:22.2]} 41... Qc5 {[%clk 0:00:04.5]} 42. Qe4 {[%clk 0:00:23.1]} 42... Qc3
{[%clk 0:00:03.5]} 43. Rf3 {[%clk 0:00:24.4]} 43... Qc1 {[%clk 0:00:03.9]} 44.
Qe6 {[%clk 0:00:24.9]} 44... Qd1 {[%clk 0:00:04.4]} 45. Qe4 {[%clk 0:00:24.9]}
45... Qc1 {[%clk 0:00:04.6]} 46. Re3 {[%clk 0:00:24.7]} 46... Qd1 {[%clk
0:00:05.4]} 47. Re2 {[%clk 0:00:25.9]} 47... Qc1 {[%clk 0:00:06.1]} 48. f4
{[%clk 0:00:26.1]} 48... Qd1 {[%clk 0:00:06.8]} 49. Qf3 {[%clk 0:00:24.5]} 49...
Qc1 {[%clk 0:00:07.4]} 50. Rf2 {[%clk 0:00:24.4]} 50... Qc4 {[%clk 0:00:07]} 51.
Re2 {[%clk 0:00:22.2]} 51... Qc1 {[%clk 0:00:06.7]} 52. Rf2 {[%clk 0:00:22.6]}
52... Qc4 {[%clk 0:00:07.1]} 53. g5 {[%clk 0:00:23.6]} 53... hxg5 {[%clk
0:00:08]} 54. fxg5 {[%clk 0:00:25.3]} 54... Bxg5 {[%clk 0:00:09]} 55. Qf8+
{[%clk 0:00:25.5]} 55... Kh7 {[%clk 0:00:09.3]} 56. Rf7# {[%clk 0:00:26.2]} 1-0

[Event "*** Qualifier 3: Titled Tuesday 3|2 Blitz"]
[Site "Chess.com"]
[Date "2017.04.18"]
[Round "4"]
[White "rasmussvane"]
[Black "Sanan_Sjugirov"]
[Result "1-0"]
[WhiteElo "2521"]
[BlackElo "2648"]
[TimeControl "180+2"]
[EndTime "13:53:47 PDT"]
[Termination "rasmussvane won by resignation"]

1. Nf3 {[%clk 0:03:02]} 1... d5 {[%clk 0:02:58.7]} 2. d4 {[%clk 0:03:02.5]} 2...
Nf6 {[%clk 0:02:59.6]} 3. c4 {[%clk 0:03:01]} 3... e6 {[%clk 0:03:00.6]} 4. Nc3
{[%clk 0:02:59.8]} 4... Bb4 {[%clk 0:02:57.1]} 5. cxd5 {[%clk 0:02:50.5]} 5...
exd5 {[%clk 0:02:57.7]} 6. Bf4 {[%clk 0:02:49.4]} 6... Nbd7 {[%clk 0:02:46.2]}
7. e3 {[%clk 0:02:47.6]} 7... c6 {[%clk 0:02:23.8]} 8. Bd3 {[%clk 0:02:47]} 8...
O-O {[%clk 0:02:13.2]} 9. Qc2 {[%clk 0:02:46.4]} 9... Re8 {[%clk 0:02:12]} 10.
O-O {[%clk 0:02:43.5]} 10... Nf8 {[%clk 0:02:12.1]} 11. h3 {[%clk 0:02:43.2]}
11... Ng6 {[%clk 0:02:10.9]} 12. Bh2 {[%clk 0:02:43.9]} 12... Bd6 {[%clk
0:02:08.1]} 13. Bxd6 {[%clk 0:02:44.9]} 13... Qxd6 {[%clk 0:02:10]} 14. Rab1
{[%clk 0:02:44]} 14... a5 {[%clk 0:02:09.2]} 15. a3 {[%clk 0:02:43.8]} 15... Be6
{[%clk 0:01:49.7]} 16. Rfc1 {[%clk 0:02:40.2]} 16... Nd7 {[%clk 0:01:31.2]} 17.
Na4 {[%clk 0:02:35.4]} 17... Rec8 {[%clk 0:01:28.6]} 18. b4 {[%clk 0:02:35]}
18... axb4 {[%clk 0:01:24.7]} 19. axb4 {[%clk 0:02:33.7]} 19... b5 {[%clk
0:01:13.3]} 20. Nc5 {[%clk 0:02:35]} 20... Nb6 {[%clk 0:01:14.5]} 21. Ra1 {[%clk
0:02:29.6]} 21... Nf8 {[%clk 0:01:07]} 22. Ne5 {[%clk 0:02:19.5]} 22... Nc4
{[%clk 0:01:06.4]} 23. Qc3 {[%clk 0:02:10.8]} 23... f6 {[%clk 0:01:02.4]} 24.
Nf3 {[%clk 0:02:11.5]} 24... Bf7 {[%clk 0:00:58.8]} 25. Bf5 {[%clk 0:02:07.7]}
25... Re8 {[%clk 0:00:57.2]} 26. Bd3 {[%clk 0:02:04.6]} 26... Bg6 {[%clk
0:00:55.3]} 27. Bf1 {[%clk 0:01:55.6]} 27... Nd7 {[%clk 0:00:52.7]} 28. Rxa8
{[%clk 0:01:45.9]} 28... Rxa8 {[%clk 0:00:53.3]} 29. Ra1 {[%clk 0:01:47.5]}
29... Ndb6 {[%clk 0:00:46]} 30. Rxa8+ {[%clk 0:01:46.8]} 30... Nxa8 {[%clk
0:00:47.9]} 31. Qa1 {[%clk 0:01:46.4]} 31... Qb8 {[%clk 0:00:42.2]} 32. Nd7
{[%clk 0:01:31.1]} 32... Qb7 {[%clk 0:00:40.5]} 33. Nc5 {[%clk 0:01:32.3]} 33...
Qb8 {[%clk 0:00:41.7]} 34. Nh4 {[%clk 0:00:59.5]} 34... Nab6 {[%clk 0:00:34.1]}
35. Nxg6 {[%clk 0:00:59.6]} 35... hxg6 {[%clk 0:00:36]} 36. Bd3 {[%clk 0:01:00]}
36... f5 {[%clk 0:00:29.6]} 37. h4 {[%clk 0:00:54]} 37... Qa8 {[%clk 0:00:22.3]}
38. Qxa8+ {[%clk 0:00:42.4]} 38... Nxa8 {[%clk 0:00:24.2]} 39. g4 {[%clk
0:00:43.3]} 39... fxg4 {[%clk 0:00:20.4]} 40. Bxg6 {[%clk 0:00:44.8]} 40... Nab6
{[%clk 0:00:19.5]} 41. Be8 {[%clk 0:00:43.2]} 41... Na3 {[%clk 0:00:10.6]} 42.
Bxc6 {[%clk 0:00:43.5]} 42... Nc2 {[%clk 0:00:11.6]} 43. Bxb5 {[%clk 0:00:43.9]}
43... Nxb4 {[%clk 0:00:12.6]} 44. Kg2 {[%clk 0:00:43.6]} 44... Kf7 {[%clk
0:00:12.6]} 45. Kg3 {[%clk 0:00:43.8]} 45... Nc2 {[%clk 0:00:13.5]} 46. Kxg4
{[%clk 0:00:42.7]} 46... Na3 {[%clk 0:00:15]} 47. Bd3 {[%clk 0:00:42.8]} 47...
Nac4 {[%clk 0:00:16.4]} 48. Kf4 {[%clk 0:00:39.7]} 48... Nd6 {[%clk 0:00:15.8]}
49. f3 {[%clk 0:00:39.6]} 49... Ke7 {[%clk 0:00:14]} 50. e4 {[%clk 0:00:40.6]}
50... dxe4 {[%clk 0:00:14.1]} 51. fxe4 {[%clk 0:00:41.8]} 51... Nf7 {[%clk
0:00:14.9]} 52. Kf5 {[%clk 0:00:33.8]} 52... Nd6+ {[%clk 0:00:14]} 53. Kg6
{[%clk 0:00:34.3]} 53... Ne8 {[%clk 0:00:15]} 54. Be2 {[%clk 0:00:28.9]} 54...
Nc8 {[%clk 0:00:14.3]} 55. e5 {[%clk 0:00:29.4]} 55... Kf8 {[%clk 0:00:14.4]}
56. Kf5 {[%clk 0:00:26.2]} 56... Ne7+ {[%clk 0:00:15.2]} 57. Ke4 {[%clk
0:00:27.5]} 57... Nc7 {[%clk 0:00:15]} 58. Bc4 {[%clk 0:00:25.5]} 58... Na8
{[%clk 0:00:08.9]} 59. d5 {[%clk 0:00:25.7]} 59... Nb6 {[%clk 0:00:09.9]} 60.
Bb3 {[%clk 0:00:27]} 60... Ng6 {[%clk 0:00:10.6]} 61. h5 {[%clk 0:00:27.1]}
61... Nh8 {[%clk 0:00:12]} 62. d6 {[%clk 0:00:27.8]} 1-0

[Event "*** Qualifier 3: Titled Tuesday 3|2 Blitz"]
[Site "Chess.com"]
[Date "2017.04.18"]
[Round "4"]
[White "Vamostodorecto"]
[Black "stefanodinn"]
[Result "1/2-1/2"]
[WhiteElo "2378"]
[BlackElo "2195"]
[TimeControl "180+2"]
[EndTime "13:53:58 PDT"]
[Termination "Game drawn by agreement"]

1. d4 {[%clk 0:03:02]} 1... Nf6 {[%clk 0:02:59.6]} 2. c4 {[%clk 0:03:02.9]} 2...
e6 {[%clk 0:03:00.1]} 3. Nc3 {[%clk 0:03:04.2]} 3... Bb4 {[%clk 0:02:59.7]} 4.
a3 {[%clk 0:03:04.3]} 4... Bxc3+ {[%clk 0:03:00.2]} 5. bxc3 {[%clk 0:03:06.2]}
5... c5 {[%clk 0:02:58.8]} 6. f3 {[%clk 0:03:06.7]} 6... d5 {[%clk 0:02:53.5]}
7. cxd5 {[%clk 0:03:08.6]} 7... Nxd5 {[%clk 0:02:48.2]} 8. dxc5 {[%clk
0:03:08.5]} 8... Qa5 {[%clk 0:02:43.2]} 9. e4 {[%clk 0:03:09.5]} 9... Qxc3+
{[%clk 0:01:46.7]} 10. Bd2 {[%clk 0:03:07.2]} 10... Qe5 {[%clk 0:01:46.2]} 11.
Ne2 {[%clk 0:02:53.1]} 11... Nf6 {[%clk 0:01:35]} 12. Bf4 {[%clk 0:02:47.4]}
12... Qxc5 {[%clk 0:01:26.2]} 13. Rc1 {[%clk 0:02:43.9]} 13... Qa5+ {[%clk
0:01:26.5]} 14. Bd2 {[%clk 0:02:37.9]} 14... Qd8 {[%clk 0:01:23.2]} 15. Bb4
{[%clk 0:02:36.1]} 15... Qxd1+ {[%clk 0:01:21.9]} 16. Rxd1 {[%clk 0:02:38]}
16... Nc6 {[%clk 0:01:22]} 17. Bd6 {[%clk 0:02:37.7]} 17... Ng8 {[%clk
0:00:26.2]} 18. Nc3 {[%clk 0:02:35.1]} 18... Nge7 {[%clk 0:00:19]} 19. Bb5
{[%clk 0:02:27.9]} 19... Bd7 {[%clk 0:00:17.8]} 20. Kf2 {[%clk 0:02:18.1]} 20...
a6 {[%clk 0:00:16.3]} 21. Bxc6 {[%clk 0:02:15]} 21... Bxc6 {[%clk 0:00:16.3]}
22. Ne2 {[%clk 0:02:04.2]} 22... Rd8 {[%clk 0:00:08.8]} 23. e5 {[%clk
0:02:00.7]} 23... Nf5 {[%clk 0:00:08.7]} 24. Bc5 {[%clk 0:01:58.7]} 24... Rxd1
{[%clk 0:00:08]} 25. Rxd1 {[%clk 0:02:00.6]} 25... Bd5 {[%clk 0:00:03.1]} 26.
Nc3 {[%clk 0:01:57.6]} 26... Bc6 {[%clk 0:00:04.1]} 27. g4 {[%clk 0:01:56.8]}
27... Ne7 {[%clk 0:00:04.4]} 28. Nb1 {[%clk 0:01:50]} 28... f6 {[%clk
0:00:04.7]} 29. exf6 {[%clk 0:01:34.4]} 29... gxf6 {[%clk 0:00:05.4]} 30. Nd2
{[%clk 0:01:36.2]} 30... Bd5 {[%clk 0:00:02.3]} 31. Bd4 {[%clk 0:01:30.8]} 31...
e5 {[%clk 0:00:03]} 32. Bc5 {[%clk 0:01:31.7]} 32... Kf7 {[%clk 0:00:02.3]} 33.
Nf1 {[%clk 0:01:30.7]} 33... Be6 {[%clk 0:00:02.8]} 34. Ne3 {[%clk 0:01:28.4]}
34... Rc8 {[%clk 0:00:03.6]} 35. Bb4 {[%clk 0:01:26.8]} 35... Nc6 {[%clk
0:00:03.8]} 36. Bc5 {[%clk 0:01:24.2]} 36... Rd8 {[%clk 0:00:04.8]} 37. Rb1
{[%clk 0:01:23.2]} 37... b5 {[%clk 0:00:04.8]} 38. Rc1 {[%clk 0:01:16]} 38...
Nd4 {[%clk 0:00:05.3]} 39. Rd1 {[%clk 0:01:05.5]} 39... Rd7 {[%clk 0:00:05.3]}
40. Bxd4 {[%clk 0:00:57.1]} 40... exd4 {[%clk 0:00:05.9]} 41. Ng2 {[%clk
0:00:57.6]} 41... Bc4 {[%clk 0:00:05.9]} 42. Nf4 {[%clk 0:00:57.4]} 42... d3
{[%clk 0:00:06.7]} 43. Ke3 {[%clk 0:00:58.1]} 43... Re7+ {[%clk 0:00:07.5]} 44.
Kd4 {[%clk 0:00:57.1]} 44... Rd7+ {[%clk 0:00:08.1]} 45. Ke3 {[%clk 0:00:57.6]}
45... a5 {[%clk 0:00:07.8]} 46. h4 {[%clk 0:00:57]} 46... b4 {[%clk 0:00:08.3]}
47. axb4 {[%clk 0:00:57.5]} 47... axb4 {[%clk 0:00:09.5]} 48. h5 {[%clk
0:00:59.1]} 48... b3 {[%clk 0:00:10.1]} 49. Kd2 {[%clk 0:00:58.9]} 49... b2
{[%clk 0:00:09.6]} 50. Kc3 {[%clk 0:00:58.8]} 50... Rb7 {[%clk 0:00:08.4]} 51.
Rb1 {[%clk 0:00:56.2]} 51... Ba6 {[%clk 0:00:09]} 52. Rxb2 {[%clk 0:00:50.1]}
52... Rxb2 {[%clk 0:00:09.8]} 53. Kxb2 {[%clk 0:00:52]} 53... Bb7 {[%clk
0:00:10.4]} 54. Nxd3 {[%clk 0:00:39.7]} 54... Bxf3 {[%clk 0:00:10.9]} 55. g5
{[%clk 0:00:41.2]} 55... Bxh5 {[%clk 0:00:09]} 56. gxf6 {[%clk 0:00:41.6]} 56...
Kxf6 {[%clk 0:00:09.6]} 57. Kc3 {[%clk 0:00:39.8]} 57... Bg4 {[%clk 0:00:07.2]}
58. Nf2 {[%clk 0:00:39.2]} 58... Bf5 {[%clk 0:00:07.2]} 59. Kd4 {[%clk
0:00:39.9]} 59... h5 {[%clk 0:00:07.7]} 60. Ke3 {[%clk 0:00:40.5]} 60... Kg5
{[%clk 0:00:08.8]} 61. Kf3 {[%clk 0:00:41.5]} 61... Kh4 {[%clk 0:00:08]} 62. Kg2
{[%clk 0:00:41.3]} 62... Kg5 {[%clk 0:00:08.3]} 63. Kh2 {[%clk 0:00:42.1]} 63...
Kf4 {[%clk 0:00:09.4]} 1/2-1/2

[Event "*** Qualifier 3: Titled Tuesday 3|2 Blitz"]
[Site "Chess.com"]
[Date "2017.04.18"]
[Round "4"]
[White "chessking2151"]
[Black "oskariot"]
[Result "0-1"]
[WhiteElo "2314"]
[BlackElo "2444"]
[TimeControl "180+2"]
[EndTime "13:54:01 PDT"]
[Termination "oskariot won on time"]

1. e4 {[%clk 0:03:02]} 1... c5 {[%clk 0:03:00.3]} 2. Nf3 {[%clk 0:02:58.1]} 2...
d6 {[%clk 0:03:01.4]} 3. d4 {[%clk 0:02:52.4]} 3... cxd4 {[%clk 0:03:02]} 4.
Nxd4 {[%clk 0:02:53.1]} 4... Nf6 {[%clk 0:03:03.9]} 5. Nc3 {[%clk 0:02:54.7]}
5... Nc6 {[%clk 0:03:05.8]} 6. Bg5 {[%clk 0:02:54.7]} 6... e6 {[%clk 0:03:07.4]}
7. Qd2 {[%clk 0:02:53.2]} 7... a6 {[%clk 0:03:08.9]} 8. O-O-O {[%clk 0:02:53.4]}
8... h6 {[%clk 0:03:10.4]} 9. Be3 {[%clk 0:02:53.1]} 9... Be7 {[%clk 0:03:07.4]}
10. f3 {[%clk 0:02:52.6]} 10... Nxd4 {[%clk 0:03:08.4]} 11. Bxd4 {[%clk
0:02:49.1]} 11... b5 {[%clk 0:03:09.8]} 12. Kb1 {[%clk 0:02:50.2]} 12... Rb8
{[%clk 0:02:54.5]} 13. g4 {[%clk 0:02:46.7]} 13... Qa5 {[%clk 0:02:44.6]} 14. h4
{[%clk 0:02:30.8]} 14... b4 {[%clk 0:02:40.8]} 15. Ne2 {[%clk 0:02:30.5]} 15...
e5 {[%clk 0:02:42.3]} 16. Be3 {[%clk 0:02:19.8]} 16... Be6 {[%clk 0:02:42.8]}
17. Nc1 {[%clk 0:02:14.8]} 17... d5 {[%clk 0:02:44.1]} 18. exd5 {[%clk
0:02:11.1]} 18... Nxd5 {[%clk 0:02:43.1]} 19. Nb3 {[%clk 0:02:10.2]} 19... Qc7
{[%clk 0:02:28.1]} 20. Bxa6 {[%clk 0:02:06.6]} 20... O-O {[%clk 0:02:28.6]} 21.
g5 {[%clk 0:02:05.8]} 21... Rfd8 {[%clk 0:02:29.1]} 22. Qe2 {[%clk 0:02:01.2]}
22... Ra8 {[%clk 0:01:40.3]} 23. Bf2 {[%clk 0:01:23.7]} 23... Nf4 {[%clk
0:01:35.1]} 24. Rxd8+ {[%clk 0:01:09.7]} 24... Bxd8 {[%clk 0:01:22.3]} 25. Qb5
{[%clk 0:01:08.5]} 25... hxg5 {[%clk 0:00:53.8]} 26. hxg5 {[%clk 0:01:06]} 26...
Bxg5 {[%clk 0:00:53.9]} 27. Qb7 {[%clk 0:00:52.6]} 27... Qxb7 {[%clk 0:00:45.4]}
28. Bxb7 {[%clk 0:00:52.4]} 28... Rb8 {[%clk 0:00:47.2]} 29. Nc5 {[%clk
0:00:41.5]} 29... Bh3 {[%clk 0:00:27.3]} 30. Be4 {[%clk 0:00:31.2]} 30... Be7
{[%clk 0:00:23.7]} 31. Na6 {[%clk 0:00:24.9]} 31... Rc8 {[%clk 0:00:22.4]} 32.
Bb6 {[%clk 0:00:14.8]} 32... Be6 {[%clk 0:00:18.8]} 33. Bb7 {[%clk 0:00:14]}
33... Rf8 {[%clk 0:00:18.4]} 34. Re1 {[%clk 0:00:12.9]} 34... f6 {[%clk
0:00:13.8]} 35. Ba5 {[%clk 0:00:10.6]} 35... g5 {[%clk 0:00:10.6]} 36. Nc7
{[%clk 0:00:11.3]} 36... Bf7 {[%clk 0:00:11.1]} 37. Rd1 {[%clk 0:00:08.9]} 37...
Rb8 {[%clk 0:00:12]} 38. Be4 {[%clk 0:00:09.3]} 38... Rd8 {[%clk 0:00:08.7]} 39.
Rc1 {[%clk 0:00:09.3]} 39... Rb8 {[%clk 0:00:06.7]} 40. Na6 {[%clk 0:00:09.1]}
40... Rf8 {[%clk 0:00:06.8]} 41. Bc7 {[%clk 0:00:10.2]} 41... Ne2 {[%clk
0:00:07.8]} 42. Re1 {[%clk 0:00:11]} 42... Nd4 {[%clk 0:00:09.2]} 43. Rd1 {[%clk
0:00:10.5]} 43... Kg7 {[%clk 0:00:09]} 44. Bb6 {[%clk 0:00:09.8]} 44... Ne2
{[%clk 0:00:06.9]} 45. Bd3 {[%clk 0:00:10.1]} 45... Nf4 {[%clk 0:00:07.4]} 46.
Bc5 {[%clk 0:00:11.5]} 46... Bxc5 {[%clk 0:00:08.2]} 47. Nxc5 {[%clk 0:00:13.4]}
47... Rd8 {[%clk 0:00:09.5]} 48. Re1 {[%clk 0:00:12.2]} 48... Rd5 {[%clk
0:00:10.5]} 49. Nb3 {[%clk 0:00:04]} 49... Nxd3 {[%clk 0:00:11.6]} 50. cxd3
{[%clk 0:00:05.5]} 50... Rxd3 {[%clk 0:00:12.9]} 51. Nc5 {[%clk 0:00:06.2]}
51... Rxf3 {[%clk 0:00:13.5]} 52. Re4 {[%clk 0:00:07.3]} 52... Bg6 {[%clk
0:00:14.3]} 53. Ne6+ {[%clk 0:00:04.6]} 53... Kf7 {[%clk 0:00:13.5]} 54. a4
{[%clk 0:00:06.5]} 54... Kxe6 {[%clk 0:00:14.4]} 55. Ka2 {[%clk 0:00:08.4]}
55... Bxe4 {[%clk 0:00:15.4]} 56. a5 {[%clk 0:00:09.6]} 56... Bd5+ {[%clk
0:00:16.6]} 0-1

[Event "*** Qualifier 3: Titled Tuesday 3|2 Blitz"]
[Site "Chess.com"]
[Date "2017.04.18"]
[Round "4"]
[White "ChessQueen"]
[Black "gmcorrales"]
[Result "1-0"]
[WhiteElo "2440"]
[BlackElo "2587"]
[TimeControl "180+2"]
[EndTime "13:54:07 PDT"]
[Termination "ChessQueen won on time"]

1. e4 {[%clk 0:03:02]} 1... c5 {[%clk 0:03:00.9]} 2. Nf3 {[%clk 0:03:02.9]} 2...
Nc6 {[%clk 0:03:00.7]} 3. d4 {[%clk 0:03:04]} 3... cxd4 {[%clk 0:03:01.8]} 4.
Nxd4 {[%clk 0:03:05.6]} 4... e5 {[%clk 0:03:02.9]} 5. Nb5 {[%clk 0:03:05.8]}
5... Nf6 {[%clk 0:03:03.3]} 6. N1c3 {[%clk 0:03:02.9]} 6... d6 {[%clk
0:03:04.2]} 7. Na3 {[%clk 0:02:52.5]} 7... Be7 {[%clk 0:03:03.5]} 8. Nc4 {[%clk
0:02:50.7]} 8... O-O {[%clk 0:03:03.9]} 9. Ne3 {[%clk 0:02:48.8]} 9... Nd4
{[%clk 0:03:03]} 10. Bc4 {[%clk 0:02:49.1]} 10... Be6 {[%clk 0:03:03.5]} 11. Bd5
{[%clk 0:02:42.3]} 11... Nxd5 {[%clk 0:03:01.3]} 12. Ncxd5 {[%clk 0:02:39.3]}
12... Rc8 {[%clk 0:03:00.2]} 13. c3 {[%clk 0:02:39.7]} 13... Nc6 {[%clk
0:03:00.8]} 14. O-O {[%clk 0:02:38.7]} 14... Bg5 {[%clk 0:03:01.5]} 15. Qd3
{[%clk 0:02:33.7]} 15... Ne7 {[%clk 0:02:36.1]} 16. Rd1 {[%clk 0:02:25.9]} 16...
Ng6 {[%clk 0:02:25.7]} 17. Nf5 {[%clk 0:02:18.6]} 17... Bxc1 {[%clk 0:02:21]}
18. Raxc1 {[%clk 0:02:17]} 18... Bxd5 {[%clk 0:02:09.7]} 19. Qxd5 {[%clk
0:02:02.4]} 19... Nf4 {[%clk 0:02:10.3]} 20. Qd2 {[%clk 0:02:02]} 20... d5
{[%clk 0:02:01.9]} 21. exd5 {[%clk 0:01:55.5]} 21... Qg5 {[%clk 0:01:55.3]} 22.
Ng3 {[%clk 0:01:55.3]} 22... h5 {[%clk 0:01:51.8]} 23. f3 {[%clk 0:01:50.1]}
23... Rcd8 {[%clk 0:01:46.6]} 24. c4 {[%clk 0:01:41.1]} 24... h4 {[%clk
0:01:43.4]} 25. Ne4 {[%clk 0:01:40.1]} 25... Qg6 {[%clk 0:01:44.3]} 26. Kh1
{[%clk 0:01:39]} 26... f5 {[%clk 0:01:44.6]} 27. Nc3 {[%clk 0:01:27.9]} 27...
Qg5 {[%clk 0:01:43.1]} 28. Rc2 {[%clk 0:01:13.6]} 28... Rf6 {[%clk 0:01:40.8]}
29. Qe3 {[%clk 0:01:06.7]} 29... Re8 {[%clk 0:01:22.4]} 30. d6 {[%clk
0:01:03.1]} 30... Rg6 {[%clk 0:01:22.7]} 31. d7 {[%clk 0:01:00.9]} 31... Rd8
{[%clk 0:01:23.7]} 32. Qxe5 {[%clk 0:00:50.8]} 32... Nxg2 {[%clk 0:01:21.2]} 33.
Nd5 {[%clk 0:00:36.2]} 33... Kh7 {[%clk 0:00:39.6]} 34. h3 {[%clk 0:00:34.6]}
34... Rxd7 {[%clk 0:00:35]} 35. Rg1 {[%clk 0:00:35.1]} 35... Qh5 {[%clk
0:00:20.5]} 36. Rcxg2 {[%clk 0:00:33.1]} 36... Qxf3 {[%clk 0:00:21.3]} 37. Qe3
{[%clk 0:00:24.7]} 37... Rg3 {[%clk 0:00:15.4]} 38. Qxf3 {[%clk 0:00:23.2]}
38... Rxf3 {[%clk 0:00:16.3]} 39. Kh2 {[%clk 0:00:24.5]} 39... b5 {[%clk
0:00:16.5]} 40. b3 {[%clk 0:00:24.4]} 40... bxc4 {[%clk 0:00:17.3]} 41. bxc4
{[%clk 0:00:25.6]} 41... Rb7 {[%clk 0:00:17.5]} 42. Rc1 {[%clk 0:00:25.3]} 42...
g5 {[%clk 0:00:15.8]} 43. c5 {[%clk 0:00:26.1]} 43... g4 {[%clk 0:00:10.1]} 44.
hxg4 {[%clk 0:00:26.3]} 44... h3 {[%clk 0:00:11.5]} 45. Rg3 {[%clk 0:00:22.6]}
45... Rb2+ {[%clk 0:00:11.9]} 46. Kxh3 {[%clk 0:00:23.4]} 46... Rff2 {[%clk
0:00:13]} 47. gxf5 {[%clk 0:00:24.1]} 47... Kh6 {[%clk 0:00:14.4]} 48. Kg4
{[%clk 0:00:21.4]} 48... Rxa2 {[%clk 0:00:15.1]} 49. Rc4 {[%clk 0:00:16.1]}
49... Rae2 {[%clk 0:00:11.8]} 50. c6 {[%clk 0:00:16.8]} 50... Re8 {[%clk
0:00:09.2]} 51. c7 {[%clk 0:00:17.2]} 51... Rc8 {[%clk 0:00:07.3]} 52. Kh3
{[%clk 0:00:18.3]} 52... Rxf5 {[%clk 0:00:03.7]} 53. Rh4+ {[%clk 0:00:18.4]}
53... Rh5 {[%clk 0:00:04.7]} 54. Rxh5+ {[%clk 0:00:20]} 54... Kxh5 {[%clk
0:00:06.6]} 55. Rc3 {[%clk 0:00:21.4]} 55... Kg5 {[%clk 0:00:05.5]} 56. Ne7
{[%clk 0:00:22.5]} 56... Rh8+ {[%clk 0:00:05.5]} 57. Kg3 {[%clk 0:00:23.3]}
57... Kf6 {[%clk 0:00:06.4]} 58. c8=Q {[%clk 0:00:23.6]} 1-0